Cogmind - Beta 9.1 @@@ ROGUE MODE // 2019.10.31 @ 16:31:43 // Halloween2019/Abominations Player: SHADOWELITE7 Result: Destroyed by G-34 Mercenary with Small Laser Performance ------------- Evolutions (0) 0 Regions Visited (1) 200 Robots Destroyed (10) 50 Value Destroyed (394) 394 Prototype IDs (0) 0 Alien Tech Used (0) 0 Bonus (0) 0 TOTAL SCORE: 644 Bonus ------- None Cogmind --------- Core Integrity 0/250 Matter 300/300 Energy 100/100 System Corruption 3% Temperature Cool (6) Location -10/Materials Parts ------- Power (1) Propulsion (2) Utility (2) Small Storage Unit Structural Scanner Weapon (2) Inventory (6) Ion Engine Peak State ------------ Power Ion Engine Propulsion Light Treads Light Treads Utility Small Storage Unit Structural Scanner Weapon Assault Rifle Light Assault Rifle Inventory Ion Engine Light Assault Rifle [Rating: 7] Favorites ----------- Power Ion Engine Engine Ion Engine Propulsion Light Treads Treads Light Treads Utility Small Storage Unit Device Structural Scanner Storage Small Storage Unit Weapon Assault Rifle Ballistic Gun Assault Rifle Launcher Grenade Launcher Build | -11 -10 ------- Run | Scr Mat Slots Evolved . | . . Power . | . . Propulsion . | . . Utility . | . . Weapon . | . . Parts Attached 12 | 6 6 Power 1 | 1 . Engine 1 | 1 . Core . | . . Reactor . | . . Propulsion 2 | 2 . Treads 2 | 2 . Leg . | . . Wheel . | . . Hover . | . . Flight . | . . Utility 4 | 1 3 Device 2 | . 2 Storage 2 | 1 1 Processor . | . . Hackware . | . . Protection . | . . Artifact . | . . Weapon 5 | 2 3 Energy Gun . | . . Energy Cannon . | . . Ballistic Gun 4 | 2 2 Ballistic Cannon . | . . Launcher 1 | . 1 Special Weapon . | . . Impact Weapon . | . . Slashing Weapon . | . . Piercing Weapon . | . . Special Melee Weapon . | . . Unidentified Prototypes . | . . Parts Lost 5 | . 5 Power 1 | . 1 Propulsion 2 | . 2 Utility . | . . Weapon 2 | . 2 Highest Loss Streak 3 | . 3 Average Slot Usage (%) 85 | . 85 Engine 14 | . 14 Treads 27 | . 27 Device 10 | . 10 Storage 14 | . 14 Ballistic Gun 15 | . 15 Launcher 3 | . 3 Naked Turns . | . . Heaviest Build 15 | 12 15 Greatest Support 40 | 40 40 Greatest Overweight (x) 3 | . 3 Average Overweight (x) . | . . Largest Inventory Capacity 6 | 6 6 Average Capacity 5 | 5 6 Most Carried 5 | 3 5 Average Carried 1 | 1 1 Final Capacity 6 | 6 6 Final Carried 2 | 2 1 Class Distribution -------------------- 100% | Mutant Dominant Class ---------------- Mutant | -10/Materials Resources | -11 -10 ----------- Run | Scr Mat Matter Collected 437 | 235 202 Remotely . | . . Salvage Created 297 | . 297 Parts 25 | . 25 Haulers Intercepted 1 | . 1 Recyclers Shooed . | . . Parts Field Recycled . | . . Retrieved Matter . | . . Parts Self-Destructed . | . . Prevented . | . . Kills | -11 -10 ------- Run | Scr Mat Combat Hostiles Destroyed 8 | . 8 Melee 1 | . 1 Guns 3 | . 3 AOE 4 | . 4 Classes Destroyed 4 | . 4 Hauler 1 | . 1 Watcher 1 | . 1 Grunt 4 | . 4 Abomination 4 | . 4 Best Kill Streak 5 | . 5 Combat Bots Only 4 | . 4 Max Kills in Single Turn 2 | . 2 Gunslinging . | . . Exploded 1 | . 1 Melee 1 | . 1 Uniques/NPCs Destroyed . | . . Combat | -11 -10 -------- Run | Scr Mat Damage Taken 920 | . 920 Core 253 | . 253 Absorbed by Shields . | . . Core Remaining (%) 100 | 100 . Volleys Fired 24 | . 24 Largest 2 | . 2 Hottest 50 | . 50 Shots Fired 46 | . 46 Gun 38 | . 38 Cannon . | . . Launcher 8 | . 8 Special . | . . Kinetic 38 | . 38 Thermal . | . . Explosive 8 | . 8 Electromagnetic . | . . Robot Hit Streak 11 | . 11 Robot Miss Streak 2 | . 2 Penetration Max . | . . Secondary Targets . | . . Shots Hit Robots 35 | . 35 Core Hits 24 | . 24 Critical Hits . | . . Critical Kills . | . . Critical Parts Destroyed . | . . Melee Attacks . | . . Impact . | . . Slashing . | . . Piercing . | . . Sneak Attacks . | . . Combat Hostiles . | . . Follow-up Attacks . | . . Damage Inflicted 659 | . 659 Guns 290 | . 290 Cannons . | . . Explosions 346 | . 346 Melee . | . . Ramming 23 | . 23 Kinetic 290 | . 290 Thermal . | . . Explosive 346 | . 346 Electromagnetic . | . . Impact . | . . Slashing . | . . Piercing . | . . Highest Corruption 3 | . 3 Average Corruption 1 | . 1 Corruption Purged . | . . Effects 1 | . 1 Energy Discharges 1 | . 1 Overload Shots . | . . Overflow Damage 4 | . 4 Projectiles . | . . Explosions 4 | . 4 Melee . | . . Knockbacks 1 | . 1 Impact 1 | . 1 Kinetic . | . . Secondary . | . . Self-Inflicted Damage 38 | . 38 Shots 2 | . 2 Rammed 13 | . 13 Targets Rammed 13 | . 13 Kicked . | . . Crushed . | . . Highest Temperature 210 | . 210 Average Temperature 81 | . 81 Received Heat Transfer 198 | . 198 Effects 3 | . 3 Interference 3 | . 3 Siege Activations . | . . Robots Corrupted . | . . Combat Hostiles . | . . Parts Fried . | . . Impact Corruptions . | . . Robots Melted . | . . Combat Hostiles . | . . Parts Melted . | . . Heat Transferred . | . . Parts Sabotaged . | . . Parts Stolen . | . . Parts Stripped . | . . Power Chain Reactions . | . . Missiles Intercepted . | . . Alert | -11 -10 ------- Run | Scr Mat Peak Influence 113 | . 113 Average Influence 26 | . 29 Maximum Alert Level . | . . Low Security (%) 100 | . . Level 1 . | . . Level 2 . | . . Level 3 . | . . Level 4 . | . . Level 5 . | . . High Security . | . . Max Security . | . . Squads Dispatched 4 | . 4 Investigation 4 | . 4 Extermination . | . . Reinforcement . | . . Assault . | . . Garrison . | . . Intercept . | . . Construction Impeded . | . . Haulers Reinforced . | . . Stealth | -11 -10 --------- Run | Scr Mat Distress Signals 1 | . 1 Communications Jammed . | . . Distress Signals . | . . Times Spotted 11 | . 11 Peak Tracking Total 3 | . 3 Tactical Retreats . | . . Traps | -11 -10 ------- Run | Scr Mat Traps Triggered 1 | . 1 Indirectly . | . . Trap Hack Attempts . | . . Triggered . | . . Disarmed . | . . Reprogrammed . | . . Reused . | . . Traps Extracted . | . . Installed . | . . Triggered . | . . Machines | -11 -10 ---------- Run | Scr Mat Machines Disabled . | . . Max in Single Turn . | . . Machines Sabotaged . | . . Garrisons Compromised . | . . Overloaded Fab Kills . | . . Fab Network Shutdowns . | . . Hacking | -11 -10 --------- Run | Scr Mat Machines Accessed 3 | . 3 Terminals 3 | . 3 Fabricators . | . . Repair Stations . | . . Recycling Units . | . . Scanalyzers . | . . Garrison Access . | . . Total Hacks 12 | . 12 Successful 4 | . 4 Failed 8 | . 8 Catastrophic 1 | . 1 Database Lockouts . | . . Manual . | . . Terminals 12 | . 12 Fabricators . | . . Repair Stations . | . . Recycling Units . | . . Scanalyzers . | . . Garrison Access . | . . Terminal Hacks 4 | . 4 Record 3 | . 3 Dispatch Records 1 | . 1 Fabricator Hacks . | . . Repair Station Hacks . | . . Recycling Unit Hacks . | . . Scanalyzer . | . . Garrison Access Hacks . | . . Unauthorized Hacks . | . . Terminals . | . . Fabricators . | . . Repair Stations . | . . Recycling Units . | . . Scanalyzers . | . . Garrison Access . | . . Data Cores Recovered . | . . Used . | . . Hacking Detections 3 | . 3 Full Trace Events 2 | . 2 Feedback Events 1 | . 1 Corruption 1 | . 1 Feedback Blocked . | . . Robot Schematics Acquired . | . . Robots Built . | . . Matter . | . . Time . | . . Total Robot Build Rating . | . . Part Schematics Acquired . | . . Parts Built . | . . Matter . | . . Time . | . . Total Part Build Rating . | . . Parts Repaired . | . . Time . | . . Parts Recycled . | . . Recycled Matter . | . . Retrieved Matter . | . . Retrieved Components . | . . Parts Scanalyzed . | . . Part Schematics Acquired . | . . Parts Damaged . | . . Bothacking | -11 -10 ------------ Run | Scr Mat Used RIF Installer . | . . Robots Hacked . | . . Non-combat . | . . Combat . | . . Robot Hacks Applied . | . . Relay Couplers Released . | . . Robots Rewired . | . . Allies Hacked . | . . Hacks Repelled . | . . Allies | -11 -10 -------- Run | Scr Mat Total Allies . | . . Largest Group . | . . Highest-Rated Group . | . . Highest-Rated Ally . | . . Total Orders . | . . Ally Attacks . | . . Total Damage . | . . Kills . | . . Allies Corrupted . | . . Allies Melted . | . . Intel | -11 -10 ------- Run | Scr Mat Robot Analysis Total . | . . Derelict Logs Recovered . | . . Drone Launches . | . . Drone Recoveries . | . . Exploration | -11 -10 ------------- Run | Scr Mat Turns Passed 616 | 72 544 Spaces Moved 319 | 39 280 Core 8 | 3 5 Treads 311 | 36 275 Legs . | . . Wheels . | . . Hover . | . . Flight . | . . Fastest Speed 50 | 50 100 Average Speed 159 | 151 160 Slowest Speed 200 | 160 200 Overloaded Moves . | . . Propulsion Burnouts . | . . Robots Hopped . | . . Cave-ins Triggered . | . . Exploration Rate (%) 20 | 4 36 Regions Visited 1 Branch Regions . Pre-discovered Areas . | . . Known Exits Taken . | . . Unknown Exits Taken 1 | 1 . Scrap Searched . | . . Spaces Dug . | . . Terrain Destroyed 52 | . 52 Melee . | . . Projectile . | . . AOE 52 | . 52 Actions | -11 -10 --------- Run | Scr Mat Total 383 | 52 331 Wait . | . . Move 318 | 38 280 Hop . | . . Pick Up 11 | 8 3 Fast Attach . | . . Attach 12 | 6 6 Detach 2 | . 2 Swap . | . . Drop 3 | . 3 Fire 24 | . 24 Melee . | . . Ram 7 | . 7 Kick . | . . Crush 6 | . 6 Escape Stasis . | . . Rewire . | . . Trap . | . . Miscellaneous . | . . Route ------- -11/Scrapyard -10/Materials History --------- Turn | Location | Event 12 | -11/Scrapyard | Discovered new exit (range 15) 73 | -11/Scrapyard | Entered Materials 316 | -10/Materials | Build established: Mutant 560 | -10/Materials | Discovered new exit (range 7) 599 | -10/Materials | Core integrity fell below 50% 610 | -10/Materials | Core integrity fell below 20% 617 | -10/Materials | Destroyed by G-34 Mercenary with Small Laser Last Messages --------------- 00542_ Connecting with Terminal... Feedback: System corruption (+1%). 00542_ ALERT: Suspicious activity at Terminal M004. Dispatching Investigation squad. 00560_ EXIT=FOUND (Blocked) 00565_ System corrupted: Energy discharge (-97). 00593_ Lgt. Treads destroyed. 00597_ The unstable cave ceiling collapses. 00597_ Slammed into G-34 Mercenary. 00600_ Lgt. Treads destroyed. 00601_ Door malfunctions. 00602_ Slammed into G-34 Mercenary. 00609_ U-05 Engineer lays Concrete. 00612_ Ion Engine destroyed. 00613_ Slammed into G-34 Mercenary. 00613_ Destabilizing: System corrupted (+2). 00614_ Slammed into G-34 Mercenary. 00614_ Destabilizing: Short circuit. 00614_ Structural Scanner permanently disabled. 00615_ Slammed into G-34 Mercenary. Map ----- +----------------------------------------------------+ | ?????????????????????????????????????????????????? | | ?????????????????????????????????????????????????? | | ?????????????????????????????????????????????????? | | ?????????????????????????????????????????????????? | | ?????????????????????????????????????????????????? | | ?????????????????????????????????????????????????? | | ?????????????????????????????????????????????????? | | ?????????????????????????????????????????????????? | | ?????????????????????????????????????????????????? | | ?????????????????????????????????????????????????? | | ?????????????????????????????????????????????????? | | ?????????????????????????????????????????????????? | | ???????????????????????????????????????#######???? | | ???????????????????????????????????????# ##### | | ???????????????????????????????????????# | | ?????????????? ???????????????????????# T | | ??????????????? ??????????????????????# | | ??????????????? ??#??????????????????# ###"" | | ????????????? ? ?#%?????????????????## ####"" | | ???????????? ?? # ?????????########## # | | ???????????? ?? ????????#"""""""## + | | ??????????? ?## #####???#" !"! "## # | | ??????????? # #####" "## # " | | ?????????? = g # "R | | ?????????? % %%% % < # "" | | ???????????# % % %@%% ####"" | | ??????????????# # # =%g%##### ##+###??### | | ????????????????# ###/###???########## ?????# | | ?????????????? /g ??? !???????????????# ???? | | ??????????? ! #??? """???????????????# ""?? | | ???????????? ?????? # """???????????????# """# | | ?????????????????% # ""????????????????# # | | ????????????????#? # ????????????????# """# | | ?????????????????% ; ""????????????????# """# | | ????????????????? ????????????????????# """# | | ????????????????? ?????????????????????? ? | | ?????????????????????????????????????????#######?? | | ?????????????????????????????????????????????????? | | ?????????????????????????????????????????????????? | | ?????????????????????????????????????????????????? | | ?????????????????????????????????????????????????? | | ?????????????????????????????????????????????????? | | ?????????????????????????????????????????????????? | | ?????????????????????????????????????????????????? | | ?????????????????????????????????????????????????? | | ?????????????????????????????????????????????????? | | ?????????????????????????????????????????????????? | | ?????????????????????????????????????????????????? | | ?????????????????????????????????????????????????? | | ?????????????????????????????????????????????????? | +----------------------------------------------------+ Best States ------------- Heat Dissipation 25 Energy Generation 10 Energy Capacity 250 Matter Stores 300 Matter Capacity 300 Sight Range 16 Terrain Scan Density 10 Evasion (%) 40 Recoil Reduction 2 Item Schematics ----------------- None Robot Schematics ------------------ None Fabricated ------------ Nothing Alien Tech Used ----------------- None Achievements -------------- None Challenges ------------ None Game ------ Seed SegregatorNeutrinoDatajack Manual? 0 Play Time 00:08:27 Cumulative 12.6 hours Start 2019.10.31 @ 16:25:07 End 2019.10.31 @ 16:31:43 Sessions 1 Manual Loads 0 Difficulty Rogue Special Mode Halloween2019/Abominations Game No. 56 Rogue 56 Adventurer 0 Explorer 3 Win Type - Total 0 Types 0/0/0/0/0/0/0 Lore% 15 Gallery% 15 Achievement% 12 Wizard Run 0 Options --------- ASCII 0 Keyboard 0 Movement Arrows Keybinds 0 Fullscreen 0 Font 14/Terminus Map View 76x50 Tactical HUD 1 Map Filters NONE Filters NONE Steam 1 RUN: 96ca6279-5dd8-4495-aa5e-b55c924f152f